Cogmind - Beta 11.1 @@@ ROGUE MODE // 2022.12.06 @ 00:15:51 Player: Richard Blunt Result: Destroyed by D-53 Grenadier with Mini Grenade Launcher Performance ------------- Evolutions (3) 1500 Regions Visited (10) 2000 Robots Destroyed (197) 985 Value Destroyed (5328) 5328 Prototype IDs (17) 340 Alien Tech Used (0) 0 Bonus (1133) 1133 TOTAL SCORE: 11286 Bonus ------- High Alert Combat Kills 508 Follower Combat Kills 337 Met Data Miner 300 Friendly Fire -12 Cogmind --------- Core Integrity 0/700 Matter 24/300 Energy 100/100 System Corruption 11% Temperature Cool (0) Movement Core (2350) Ox46 Location -6/Proximity Caves Parts ------- > --- POWER (1) -------- (None) > --- PROPULSION (4) --- (None) > --- UTILITY (5) ------ Cargo Storage Unit Improved Signal Interpreter > --- WEAPON (3) ------- (None) > --- INVENTORY (30) --- Armored Huge Wheel Advanced Heat Sink Compact Matter Pod (150) Improved Signal Interpreter Authchip [Propulsion] Drone Bay (1/2) Mini Assault Cannon Grenade Launcher Guided Missile Launcher Long-range Missile Launcher Makeshift Axe Power Sword Peak State ------------ > --- POWER ------------ Enhanced Nuclear Core > --- PROPULSION ------- Armored Huge Wheel Armored Huge Wheel > --- UTILITY ---------- Cargo Storage Unit Improved Signal Interpreter Improved Light Armor Plating Improved Medium Armor Plating > --- WEAPON ----------- Minigun Gauss Rifle Advanced Assault Cannon > --- INVENTORY -------- Nuclear Core Armored Treads Armored Treads Medium Treads Medium Treads Armored Wheel Armored Wheel Armored Huge Wheel Compact Matter Pod Improved Signal Interpreter Makeshift Armor Plating Reflective Plating Insulated Plating Authchip [Propulsion] Long-range Tractor Beam Drone Bay Heavy Assault Rifle Gauss Rifle KE Penetrator Assault Cannon Advanced Assault Cannon Gauss Cannon Mini Assault Cannon Grenade Launcher Grenade Launcher Guided Missile Launcher Makeshift Axe [Rating: 54] Favorites ----------- Power Reinforced Ion Engine Engine Reinforced Ion Engine Power Core Enhanced Nuclear Core Propulsion Light Treads Treads Light Treads Wheel Armored Huge Wheel Hover Unit Airjet Utility Cargo Storage Unit Device Sensor Array Storage Cargo Storage Unit Processor Improved Signal Interpreter Protection Light Armor Plating Weapon Heavy Assault Rifle Energy Gun Spread Laser Energy Cannon Advanced Beam Cannon Ballistic Gun Heavy Assault Rifle Ballistic Cannon Improved Light Cannon Launcher Grenade Launcher Special Weapon Flamer Impact Weapon Mace Special Melee Weapon Datajack Build | -11 -10 -10 -9 -9 -9 -7 -7 -7 -7 -6 ------- Run | Scr Mat Min Mat Sto Rec Fac Low Low Dat Pro Slots Evolved 6 | . . . 2 . . 4 . . . . Power . | . . . . . . . . . . . Propulsion 2 | . . . 1 . . 1 . . . . Utility 3 | . . . . . . 3 . . . . Weapon 1 | . . . 1 . . . . . . . Parts Attached 197 | 7 17 12 29 48 12 24 10 11 . 27 Power 18 | 1 3 2 4 5 . 1 . 1 . 1 Engine 15 | 1 3 1 4 5 . . . . . 1 Core 3 | . . 1 . . . 1 . 1 . . Reactor . | . . . . . . . . . . . Propulsion 43 | 2 1 3 7 14 4 3 . 1 . 8 Treads 24 | 1 1 1 6 11 . . . . . 4 Leg . | . . . . . . . . . . . Wheel 18 | 1 . 2 1 3 4 3 . 1 . 3 Hover 1 | . . . . . . . . . . 1 Flight . | . . . . . . . . . . . Utility 44 | 2 4 1 4 7 . 15 2 2 . 7 Device 14 | 1 . . 1 . . 6 1 . . 5 Storage 5 | 1 3 . . 1 . . . . . . Processor 2 | . . . . . . 2 . . . . Hackware . | . . . . . . . . . . . Protection 23 | . 1 1 3 6 . 7 1 2 . 2 Artifact . | . . . . . . . . . . . Weapon 92 | 2 9 6 14 22 8 5 8 7 . 11 Energy Gun 6 | 1 2 . 1 1 1 . . . . . Energy Cannon 1 | . . . . 1 . . . . . . Ballistic Gun 43 | 1 5 5 8 11 6 . 2 2 . 3 Ballistic Cannon 18 | . . . . 3 . 4 3 3 . 5 Launcher 15 | . . 1 3 4 . 1 1 2 . 3 Special Weapon 1 | . . . . . . . 1 . . . Impact Weapon 7 | . 2 . 2 1 1 . 1 . . . Slashing Weapon . | . . . . . . . . . . . Piercing Weapon . | . . . . . . . . . . . Special Melee Weapon 1 | . . . . 1 . . . . . . Unidentified Prototypes 5 | . . . 1 2 . 2 . . . . Parts Lost 44 | . 4 4 2 2 . . 1 6 . 25 Power 5 | . 1 1 . . . . . 1 . 2 Propulsion 13 | . 1 2 . 1 . . . 1 . 8 Utility 10 | . . . 1 1 . . 1 2 . 5 Weapon 16 | . 2 1 1 . . . . 2 . 10 Highest Loss Streak 8 | . 3 2 1 1 . . 1 4 . 8 To Critical Strikes . | . . . . . . . . . . . Average Slot Usage (%) 88 | . 99 99 99 95 88 81 75 75 76 72 Engine 7 | . 13 6 10 10 11 3 . . . 1 Core 2 | . . 7 . . . 3 7 7 7 3 Treads 12 | . 14 14 26 29 . . . . . 8 Wheel 13 | . 14 13 6 3 33 20 15 15 15 9 Device 2 | . 6 . . . . 9 4 . . 2 Storage 9 | . 14 14 11 11 11 7 7 7 7 7 Processor 2 | . . . . . . 7 7 7 7 7 Protection 7 | . 7 14 10 8 . 4 9 14 15 9 Energy Gun 3 | . 8 . 5 1 11 1 . . . . Ballistic Gun 16 | . 17 26 26 22 17 7 1 10 15 11 Ballistic Cannon 6 | . . . . 8 2 12 19 9 7 8 Naked Turns . | . . . . . . . . . . . Heaviest Build 174 | 12 52 51 60 160 160 171 174 173 166 170 Greatest Support 96 | 10 10 40 60 63 36 56 56 56 56 96 Greatest Overweight (x) 52 | 1 5 5 2 15 5 3 3 3 2 52 Average Overweight (x) 2 | . 3 2 . . 4 2 2 2 2 3 Largest Inventory Capacity 30 | 8 20 20 20 30 30 30 30 30 30 30 Average Capacity 25 | 7 18 20 20 22 30 30 30 30 30 30 Most Carried 30 | 5 20 20 20 30 30 30 30 30 25 29 Average Carried 23 | 3 13 19 19 20 29 28 29 27 25 21 Final Capacity 30 | 8 20 20 20 30 30 30 30 30 30 30 Final Carried 30 | 5 20 20 20 30 30 30 30 25 25 14 Class Distribution -------------------- 19% | Mutant 18% | Hauler-Tank 14% | Hauler-Gunner 13% | Scavenger-Tank 12% | Hauler-Skirmisher 11% | Hauler-Mutant 7% | Tank Dominant Class ---------------- Mutant | -10/Materials Mutant | -10/Mines Tank | -9/Materials Scavenger-Tank | -9/Storage Hauler-Gunner | -9/Recycling Hauler-Skirmisher | -7/Factory Hauler-Tank | -7/Lower Caves Hauler-Tank | -7/Lower Caves Hauler-Tank | -7/Data Miner Hauler-Tank | -6/Proximity Caves Resources | -11 -10 -10 -9 -9 -9 -7 -7 -7 -7 -6 ----------- Run | Scr Mat Min Mat Sto Rec Fac Low Low Dat Pro Matter Collected 5686 | 284 564 229 675 1109 576 560 578 288 . 823 Remotely 355 | . . . . . . . . . . 355 Salvage Created 5962 | 161 726 345 1029 1338 342 479 522 401 . 619 Parts 367 | 17 39 18 87 89 18 22 26 22 . 29 Haulers Intercepted 8 | . 1 . 3 4 . . . . . . Recyclers Shooed 8 | . 3 1 1 . 3 . . . . . Parts Field Recycled . | . . . . . . . . . . . Retrieved Matter . | . . . . . . . . . . . Parts Self-Destructed 81 | . . . . . . . 21 22 . 38 Prevented . | . . . . . . . . . . . Kills | -11 -10 -10 -9 -9 -9 -7 -7 -7 -7 -6 ------- Run | Scr Mat Min Mat Sto Rec Fac Low Low Dat Pro Combat Hostiles Destroyed 152 | . 14 11 27 25 8 13 16 16 . 22 Guns 74 | . 14 8 17 15 7 3 1 3 . 6 Cannons 36 | . . . . 5 1 7 11 1 . 11 AOE 42 | . . 3 10 5 . 3 4 12 . 5 Classes Destroyed 17 | 2 5 . 4 1 1 2 1 . . 1 Worker 7 | . . . 3 4 . . . . . . Builder 5 | . 1 . 2 1 . 1 . . . . Tunneler 4 | 4 . . . . . . . . . . Hauler 8 | . 1 . 3 4 . . . . . . Recycler 14 | 1 1 1 2 3 5 1 . . . . Operator 2 | . . . 1 1 . . . . . . Drone 8 | . . . . . 8 . . . . . Watcher 5 | . 3 . 1 1 . . . . . . Swarmer 55 | . 3 6 16 8 . 3 4 8 . 7 Grunt 55 | . 11 5 3 7 . 7 8 7 . 7 Brawler 4 | . . . 1 1 . . 1 . . 1 Duelist 4 | . . . . 1 . . . . . 3 Sentry 19 | . . . 7 8 . 1 1 1 . 1 Demolisher 2 | . . . . . . . . . . 2 Hunter 2 | . . . . . . 1 1 . . . Programmer 2 | . . . . . . 1 . . . 1 Decomposer 1 | . . . . . . . 1 . . . Mutant 1 | . . . . . . . 1 . . . Best Kill Streak 10 | 5 6 3 7 5 2 6 5 10 . 7 Combat Bots Only 10 | . 6 3 5 4 2 3 5 10 . 7 Max Kills in Single Turn 4 | 1 2 2 4 2 1 3 3 3 . 3 Gunslinging 1 | . 1 . 1 . . . . . . . Exploded 3 | . . 2 3 2 . 3 3 3 . 3 Melee . | . . . . . . . . . . . Uniques/NPCs Destroyed . | . . . . . . . . . . . Combat | -11 -10 -10 -9 -9 -9 -7 -7 -7 -7 -6 -------- Run | Scr Mat Min Mat Sto Rec Fac Low Low Dat Pro Damage Taken 8977 | . 833 546 781 914 12 524 833 793 . 3741 Core 1239 | . 156 70 164 125 . 91 . 35 . 598 Absorbed by Shields . | . . . . . . . . . . . Redirected to Shielding 33 | . 19 14 . . . . . . . . Regen/Repaired (Parts) 78 | . . . 78 . . . . . . . Core Remaining (%) 45 | 100 . 9 . . 27 . . . . . Volleys Fired 449 | 10 65 39 64 58 71 24 29 23 . 66 Largest 3 | 2 2 2 3 3 3 3 3 3 . 3 Hottest 136 | 60 80 40 111 111 127 131 136 131 . 124 Shots Fired 1100 | 20 127 68 176 164 180 68 83 55 . 159 Gun 810 | 20 127 64 169 125 165 14 20 23 . 83 Cannon 249 | . . . . 33 15 52 61 24 . 64 Launcher 41 | . . 4 7 6 . 2 2 8 . 12 Special . | . . . . . . . . . . . Kinetic 920 | 10 88 64 148 144 125 66 81 47 . 147 Thermal 139 | 10 39 . 21 14 55 . . . . . Explosive 41 | . . 4 7 6 . 2 2 8 . 12 Electromagnetic . | . . . . . . . . . . . Robot Hit Streak 17 | 8 9 6 15 17 4 8 15 9 . 15 Robot Miss Streak 29 | 2 3 3 8 4 29 5 6 5 . 13 Penetration Max 1 | . . . . . . . . . . 1 Secondary Targets 6 | . 2 . 3 . . . . . . 1 Max Gunslinging Chain 1 | . 1 . 1 . . . . . . 1 Shots Hit Robots 630 | 12 83 38 122 101 64 44 53 30 . 83 Core Hits 423 | 6 39 20 89 65 36 36 50 32 . 50 Critical Kills 1 | . . . . . . 1 . . . . Critical Parts Destroyed 6 | . . . . 1 2 . . 1 . 2 Critical Strikes 10 | . . . . 1 2 1 2 2 . 2 Destroy 7 | . . . . 1 1 1 . 2 . 2 Blast 2 | . . . . . . . 2 . . . Smash 1 | . . . . . 1 . . . . . Melee Attacks 19 | . 4 . 4 4 6 . 1 . . . Impact 17 | . 4 . 4 2 6 . 1 . . . Slashing . | . . . . . . . . . . . Piercing . | . . . . . . . . . . . Sneak Attacks 7 | . . . 1 2 4 . . . . . Combat Hostiles . | . . . . . . . . . . . Follow-up Attacks . | . . . . . . . . . . . Damage Inflicted 13753 | 142 1083 557 1906 2142 1079 1142 1535 1391 . 2776 Guns 6161 | 142 1006 364 1188 1266 692 149 178 331 . 845 Cannons 3502 | . . . . 452 42 719 1027 214 . 1048 Explosions 3451 | . 73 193 628 379 . 246 203 846 . 883 Melee 408 | . . . 63 . 345 . . . . . Ramming 231 | . 4 . 27 45 . 28 127 . . . Kinetic 8491 | 77 683 364 885 1517 454 868 1205 545 . 1893 Thermal 1172 | 65 323 . 303 201 280 . . . . . Explosive 3378 | . . 193 628 379 . 246 203 846 . 883 Electromagnetic 73 | . 73 . . . . . . . . . Impact 408 | . . . 63 . 345 . . . . . Slashing . | . . . . . . . . . . . Piercing . | . . . . . . . . . . . Highest Corruption 11 | . 6 6 2 2 2 . 4 4 4 11 Average Corruption 3 | . 5 6 2 2 2 . 4 4 4 6 Corruption Purged . | . . . . . . . . . . . Corruption Blocked . | . . . . . . . . . . . Effects 162 | . 25 27 5 29 17 . 19 9 2 29 Message Errors 29 | . 9 4 1 3 2 . 1 1 . 8 Matter Fused 34 | . 3 8 1 6 4 . 5 4 1 2 Heat Flow Errors 17 | . 1 3 . 5 . . 4 . 1 3 Energy Discharges 23 | . 3 3 1 4 5 . 1 3 . 3 Parts Rejected 2 | . . . . . . . 1 1 . . Data Loss (minor) 22 | . 3 2 . 6 3 . 3 . . 5 Data Loss (major) 6 | . . 2 1 1 1 . 1 . . . Misfires 14 | . 2 2 1 2 1 . 1 . . 5 Alerts 9 | . 4 1 . 2 . . 1 . . 1 Weapon Failures 6 | . . 2 . . 1 . 1 . . 2 Overload Shots . | . . . . . . . . . . . Overflow Damage 283 | . . 6 43 6 144 2 23 18 . 41 Projectiles 41 | . . . . . . . . . . 41 Explosions 32 | . . 6 . 6 . . 2 18 . . Melee 210 | . . . 43 . 144 2 21 . . . Knockbacks 26 | . . . . . 1 5 8 2 . 10 Impact 2 | . . . . . 1 . 1 . . . Kinetic 24 | . . . . . . 5 7 2 . 10 Secondary . | . . . . . . . . . . . Self-Inflicted Damage 165 | . 2 11 . . . 14 63 12 . 63 Shots 5 | . . 1 . . . . . 1 . 3 Rammed 18 | . 2 . 5 5 . 2 4 . . . Targets Rammed 19 | . 2 . 5 6 . 2 4 . . . Kicked . | . . . . . . . . . . . Crushed 1 | . . . . 1 . . . . . . Highest Temperature 445 | . 159 215 399 445 210 240 375 418 100 425 Average Temperature 94 | . 38 39 79 86 71 99 153 153 52 162 Received Heat Transfer 2559 | . 387 279 204 225 6 216 297 270 . 675 Effects 14 | . . . 1 5 . . 2 2 . 4 Shutdowns 5 | . . . . 1 . . . 1 . 3 Energy Bleed 2 | . . . . 1 . . . 1 . . Interference 4 | . . . . 2 . . 2 . . . Matter Decay 1 | . . . 1 . . . . . . . Short Circuit 2 | . . . . 1 . . . . . 1 Siege Activations . | . . . . . . . . . . . Robots Corrupted . | . . . . . . . . . . . Combat Hostiles . | . . . . . . . . . . . Parts Fried 4 | . . . . . 4 . . . . . Impact Corruptions 10 | . . . 1 . 5 1 3 . . . Robots Melted . | . . . . . . . . . . . Combat Hostiles . | . . . . . . . . . . . Parts Melted 2 | . 1 . . 1 . . . . . . Heat Transferred 1855 | 150 700 . 390 250 365 . . . . . Parts Sabotaged . | . . . . . . . . . . . Parts Stolen . | . . . . . . . . . . . Parts Stripped . | . . . . . . . . . . . Power Chain Reactions . | . . . . . . . . . . . Missiles Intercepted . | . . . . . . . . . . . Alert | -11 -10 -10 -9 -9 -9 -7 -7 -7 -7 -6 ------- Run | Scr Mat Min Mat Sto Rec Fac Low Low Dat Pro Peak Influence 1078 | 25 239 425 660 1015 383 1078 . . . . Initial 1003 | . 16 78 95 238 233 1003 . . . . Average 434 | 7 107 234 343 670 293 750 . . . . Maximum Alert Level 3 | . 1 2 2 3 1 3 . . . . Low Security (%) 20 | 100 85 28 17 . 8 . . . . . Level 1 33 | . 14 61 50 6 91 . . . . . Level 2 26 | . . 10 31 59 . 36 . . . . Level 3 19 | . . . . 34 . 64 . . . . Level 4 . | . . . . . . . . . . . Level 5 . | . . . . . . . . . . . High Security . | . . . . . . . . . . . Max Security . | . . . . . . . . . . . Squads Dispatched 18 | . 3 . 1 6 . 7 . 1 . . Investigation 3 | . 2 . 1 . . . . . . . Extermination 1 | . . . . . . 1 . . . . Reinforcement 10 | . 1 . . 3 . 6 . . . . Assault 1 | . . . . . . . . 1 . . Garrison 3 | . . . . 3 . . . . . . Intercept . | . . . . . . . . . . . Searches Triggered 3 | . . . . . . 3 . . . . Construction Impeded 1 | . . . . . . 1 . . . . Haulers Reinforced 1 | . . . . . . 1 . . . . Active Scanning Responses . | . . . . . . . . . . . Cargo Convoy Interrupts 1 | . . . . . . 1 . . . . Stealth | -11 -10 -10 -9 -9 -9 -7 -7 -7 -7 -6 --------- Run | Scr Mat Min Mat Sto Rec Fac Low Low Dat Pro Distress Signals 37 | . 2 . 2 4 . 2 . . . 27 Communications Jammed . | . . . . . . . . . . . Distress Signals . | . . . . . . . . . . . Times Spotted 237 | . 23 14 37 40 34 17 18 16 . 38 Peak Tracking Total 9 | . 6 3 5 7 3 4 5 9 . 9 Tactical Retreats 10 | . . 3 3 . . 2 1 . . 1 Traps | -11 -10 -10 -9 -9 -9 -7 -7 -7 -7 -6 ------- Run | Scr Mat Min Mat Sto Rec Fac Low Low Dat Pro Traps Triggered 11 | . 4 . . 6 . . . . . 1 Indirectly . | . . . . . . . . . . . Trap Hack Attempts . | . . . . . . . . . . . Triggered . | . . . . . . . . . . . Disarmed . | . . . . . . . . . . . Reprogrammed . | . . . . . . . . . . . Reused . | . . . . . . . . . . . Traps Extracted . | . . . . . . . . . . . Installed . | . . . . . . . . . . . Triggered 1 | . . . . . . . . . . 1 Machines | -11 -10 -10 -9 -9 -9 -7 -7 -7 -7 -6 ---------- Run | Scr Mat Min Mat Sto Rec Fac Low Low Dat Pro Machines Disabled 11 | . 2 . 1 2 4 1 1 . . . Max in Single Turn 1 | . 1 . 1 1 1 1 1 . . . Garrison Access 1 | . . . . 1 . . . . . . Machines Sabotaged . | . . . . . . . . . . . Garrisons Compromised . | . . . . . . . . . . . Overloaded Fab Kills . | . . . . . . . . . . . Hacking | -11 -10 -10 -9 -9 -9 -7 -7 -7 -7 -6 --------- Run | Scr Mat Min Mat Sto Rec Fac Low Low Dat Pro Machines Accessed 46 | . 7 . 11 8 13 3 . . 4 . Terminals 27 | . 5 . 8 7 6 1 . . . . Fabricators . | . . . . . . . . . . . Repair Stations 1 | . . . 1 . . . . . . . Recycling Units 10 | . 2 . 1 . 7 . . . . . Scanalyzers 2 | . . . 1 . . 1 . . . . Garrison Access 2 | . . . . 1 . 1 . . . . Total Hacks 137 | . 17 . 25 22 33 10 . . 30 . Successful 95 | . 7 . 19 14 23 2 . . 30 . Failed 42 | . 10 . 6 8 10 8 . . . . Catastrophic 8 | . 2 . 2 2 1 1 . . . . Database Lockouts . | . . . . . . . . . . . Manual 60 | . 14 . 14 13 16 3 . . . . Terminals 73 | . 14 . 18 19 19 3 . . . . Fabricators . | . . . . . . . . . . . Repair Stations 2 | . . . 2 . . . . . . . Recycling Units 18 | . 3 . 1 . 14 . . . . . Scanalyzers 7 | . . . 4 . . 3 . . . . Garrison Access 7 | . . . . 3 . 4 . . . . Terminal Hacks 62 | . 5 . 10 10 7 . . . 30 . Record 12 | . . . 1 . . . . . 11 . Part Schematic 11 | . . . . . . . . . 11 . Robot Schematic 5 | . . . . . . . . . 5 . Robot Analysis 5 | . 2 . 1 1 1 . . . . . Prototype ID Bank 5 | . . . . 1 1 . . . 3 . Open Door 2 | . . . . 2 . . . . . . Branch Access Points 2 | . . . 1 . 1 . . . . . Recycling Unit Index 1 | . . . . . 1 . . . . . Alert Level 2 | . . . 1 . 1 . . . . . Unreport Threat 4 | . 1 . 1 2 . . . . . . Locate Traps 7 | . 1 . 3 2 1 . . . . . Recall Investigation 1 | . . . . . 1 . . . . . Zone Layout 5 | . 1 . 2 2 . . . . . . Fabricator Hacks . | . . . . . . . . . . . Repair Station Hacks 2 | . . . 2 . . . . . . . Scan Component 1 | . . . 1 . . . . . . . Repair 1 | . . . 1 . . . . . . . Recycling Unit Hacks 6 | . . . . . 6 . . . . . Report Inventory 6 | . . . . . 6 . . . . . Scanalyzer 6 | . . . 4 . . 2 . . . . Insert Component 3 | . . . 2 . . 1 . . . . Analyze 3 | . . . 2 . . 1 . . . . Garrison Access Hacks 1 | . . . . 1 . . . . . . Seal Access 1 | . . . . 1 . . . . . . Unauthorized Hacks 18 | . 2 . 3 3 10 . . . . . Terminals 9 | . . . 2 3 4 . . . . . Botnet 9 | . . . 2 3 4 . . . . . Fabricators . | . . . . . . . . . . . Repair Stations . | . . . . . . . . . . . Recycling Units 9 | . 2 . 1 . 6 . . . . . Monitor 1 | . . . . . 1 . . . . . Tunnel 8 | . 2 . 1 . 5 . . . . . Scanalyzers . | . . . . . . . . . . . Garrison Access . | . . . . . . . . . . . Data Cores Recovered 1 | . . . 1 . . . . . . . Used 1 | . . . 1 . . . . . . . Hacking Detections 30 | . 4 . 9 7 7 3 . . . . Full Trace Events . | . . . . . . . . . . . Feedback Events . | . . . . . . . . . . . Feedback Blocked . | . . . . . . . . . . . Robot Schematics Acquired 5 | . . . . . . . . . 5 . Robots Built . | . . . . . . . . . . . Authchips . | . . . . . . . . . . . Time . | . . . . . . . . . . . Total Robot Build Rating . | . . . . . . . . . . . Part Schematics Acquired 14 | . . . 2 . . 1 . . 11 . Parts Built . | . . . . . . . . . . . Authchips . | . . . . . . . . . . . Time . | . . . . . . . . . . . Total Part Build Rating . | . . . . . . . . . . . Parts Repaired 1 | . . . 1 . . . . . . . Time 26 | . . . 26 . . . . . . . Parts Recycled . | . . . . . . . . . . . Recycled Matter . | . . . . . . . . . . . Retrieved Matter . | . . . . . . . . . . . Retrieved Components . | . . . . . . . . . . . Parts Scanalyzed 3 | . . . 2 . . 1 . . . . Part Schematics Acquired 3 | . . . 2 . . 1 . . . . Parts Damaged . | . . . . . . . . . . . Bothacking | -11 -10 -10 -9 -9 -9 -7 -7 -7 -7 -6 ------------ Run | Scr Mat Min Mat Sto Rec Fac Low Low Dat Pro Used RIF Installer . | . . . . . . . . . . . Robots Hacked . | . . . . . . . . . . . Non-combat . | . . . . . . . . . . . Combat . | . . . . . . . . . . . Robot Hacks Applied . | . . . . . . . . . . . Relay Couplers Released . | . . . . . . . . . . . Fabnet Peak Effective % . | . . . . . . . . . . . Robots Rewired . | . . . . . . . . . . . Allies Hacked . | . . . . . . . . . . . Hacks Repelled . | . . . . . . . . . . . Allies | -11 -10 -10 -9 -9 -9 -7 -7 -7 -7 -6 -------- Run | Scr Mat Min Mat Sto Rec Fac Low Low Dat Pro Total Allies 11 | . . . . 10 . . . . . 1 Largest Group 10 | . . . . 10 1 1 . . . 1 Highest-Rated Group 96 | . . . . 88 8 8 . . . 96 Highest-Rated Ally 96 | . . . . 16 8 8 . . . 96 Total Orders 12 | . . . . . . 7 5 . . . STAY 1 | . . . . . . 1 . . . . ROAM 1 | . . . . . . . 1 . . . EXPLORE 6 | . . . . . . 4 2 . . . RETURN 4 | . . . . . . 2 2 . . . Ally Attacks 152 | . . . . 53 88 . . . . 11 Total Damage 1025 | . . . . 478 279 . . . . 268 Kills 23 | . . . . 7 12 . . . . 4 Allies Corrupted . | . . . . . . . . . . . Allies Melted . | . . . . . . . . . . . Intel | -11 -10 -10 -9 -9 -9 -7 -7 -7 -7 -6 ------- Run | Scr Mat Min Mat Sto Rec Fac Low Low Dat Pro Robot Analysis Total 5 | . 2 . 1 1 1 . . . . . Derelict Logs Recovered 6 | . . 1 . . . . 2 2 . 1 Drone Launches 12 | . . . . . . 7 5 . . . Drone Recoveries 7 | . . . . . . 3 4 . . . Exploration | -11 -10 -10 -9 -9 -9 -7 -7 -7 -7 -6 ------------- Run | Scr Mat Min Mat Sto Rec Fac Low Low Dat Pro Turns Passed 10617 | 90 1103 793 1229 1951 1303 1250 1118 437 120 1223 Spaces Moved 5630 | 50 636 460 645 931 683 658 663 253 93 558 Core 3 | 2 . . . . . . . . . 1 Treads 1319 | . . 14 418 806 . . . . . 81 Legs . | . . . . . . . . . . . Wheels 4308 | 48 636 446 227 125 683 658 663 253 93 476 Hover . | . . . . . . . . . . . Flight . | . . . . . . . . . . . Fastest Speed 50 | 50 95 130 105 155 143 130 130 130 130 130 Average Speed 150 | 88 132 146 143 174 151 137 143 136 130 175 Slowest Speed 2650 | 95 155 240 160 320 155 145 145 145 130 2650 Overloaded Moves . | . . . . . . . . . . . Propulsion Burnouts . | . . . . . . . . . . . Robots Hopped 2 | . . . . 2 . . . . . . Cave-ins Triggered . | . . . . . . . . . . . Exploration Rate (%) 63 | 4 87 84 57 92 99 27 73 54 71 55 Regions Visited 10 Branch Regions 7 Pre-discovered Areas 11 | . 2 . 1 . 5 . 1 . 1 1 Known Exits Taken 5 | . . . 1 . . 1 1 1 1 . Unknown Exits Taken 5 | 1 1 1 . 1 1 . . . . . Scrap Searched 8 | . . 2 . . . . 3 2 . 1 Spaces Dug 74 | . 3 9 31 14 . 3 . 14 . . Terrain Destroyed 261 | . 3 29 48 46 1 14 27 32 . 61 Melee 5 | . 3 . 2 . . . . . . . Projectile 27 | . . . . 2 1 3 9 3 . 9 AOE 229 | . . 29 46 44 . 11 18 29 . 52 Terrain Rammed . | . . . . . . . . . . . Walls Destroyed . | . . . . . . . . . . . Machines Disabled . | . . . . . . . . . . . Actions | -11 -10 -10 -9 -9 -9 -7 -7 -7 -7 -6 --------- Run | Scr Mat Min Mat Sto Rec Fac Low Low Dat Pro Total 6935 | 72 771 519 836 1149 794 960 767 299 92 676 Wait 361 | . 11 1 40 22 12 211 44 9 . 11 Move 5616 | 49 635 459 644 926 682 657 662 252 92 558 Hop 2 | . . . . 2 . . . . . . Pick Up 134 | 6 24 5 20 44 3 17 7 3 . 5 Fast Attach 41 | 6 1 . 7 14 2 6 3 1 . 1 Attach 55 | 1 3 5 5 9 . 6 2 6 . 18 Detach 12 | . . 1 . 6 . 2 2 . . 1 Swap 101 | . 13 7 17 25 10 12 5 4 . 8 Drop 117 | . 13 2 30 33 7 23 8 1 . . Fire 449 | 10 65 39 64 58 71 24 29 23 . 66 Melee 19 | . 4 . 4 4 6 . 1 . . . Ram 8 | . 2 . . . . 2 4 . . . Kick . | . . . . . . . . . . . Crush 11 | . . . 5 6 . . . . . . Escape Stasis 8 | . . . . . . . . . . 8 Rewire 1 | . . . . . 1 . . . . . Trap . | . . . . . . . . . . . Miscellaneous . | . . . . . . . . . . . Route ------- -11/Scrapyard -10/Materials (discovered 4 exits: *Mat x2 / [*Min x2]) -10/Mines -9/Materials (discovered 3 exits: [*Mat] / Min / *Sto) -9/Storage (discovered 2 exits: [*Mat] / *Rec) -9/Recycling -7/Factory -7/Lower Caves -7/Lower Caves (discovered 2 exits: *Fac / *Dat) -7/Data Miner -6/Proximity Caves (discovered 1 exit: Fac) History --------- Turn | Location | Event 14 | -11/Scrapyard | Discovered new exit (range 15) 91 | -11/Scrapyard | Entered Materials 313 | -10/Materials | Build established: Mutant 341 | -10/Materials | Discovered new exit (range 15) 444 | -10/Materials | Discovered new exit (range 8) 635 | -10/Materials | Discovered new exit (range 11) 710 | -10/Materials | Lost 3 parts (1p2w) 800 | -10/Materials | Core integrity fell below 50% 981 | -10/Materials | Discovered new exit (range 6) 1194 | -10/Materials | Entered Mines 1385 | -10/Mines | Core integrity fell below 20% 1780 | -10/Mines | YI-UF0 nonchalantly dropped a Grenade Launcher on the ground 1811 | -10/Mines | Learned Materials stockpile data 1901 | -10/Mines | Discovered new exit (range 10) 1987 | -10/Mines | Entered Materials 1987 | -9/Materials | Evolved 2 slots: Propulsion x1, Weapon x1 2219 | -9/Materials | Identified exit to Mines 2219 | -9/Materials | Identified exit to Storage 2287 | -9/Materials | Build established: Tank 2467 | -9/Materials | Discovered new exit (range 7) 2952 | -9/Materials | Repaired Lgt. Armor Plating 3216 | -9/Materials | Entered Storage 3286 | -9/Storage | Garrison activated, responded to threat 3340 | -9/Storage | Core integrity fell below 50% 3964 | -9/Storage | Discovered new exit (range 16) 3996 | -9/Storage | Assisted by bots powering up and referring to "LRC-V3" 4356 | -9/Storage | Found Prototype Launcher 4356 | -9/Storage | Identified Gui. Missile Launcher 4407 | -9/Storage | Used back door to open Recycling access 4407 | -9/Storage | Discovered new exit (range 4) 5019 | -9/Storage | Build established: Hauler-Gunner 5167 | -9/Storage | Entered Recycling 5167 | -9/Recycling | Accompanied by 1 ally 5238 | -9/Recycling | Spotter reported a threat 5246 | -9/Recycling | Spotter reported a threat 5257 | -9/Recycling | Spotter reported a threat 5283 | -9/Recycling | Spotter reported a threat 5285 | -9/Recycling | Spotter reported a threat 5304 | -9/Recycling | Spotter reported a threat 5334 | -9/Recycling | Spotter reported a threat 5334 | -9/Recycling | Spotter reported a threat 5357 | -9/Recycling | Spotter reported a threat 5381 | -9/Recycling | Spotter reported a threat 5387 | -9/Recycling | Spotter reported a threat 5411 | -9/Recycling | Spotter reported a threat 5434 | -9/Recycling | Spotter reported a threat 5440 | -9/Recycling | Spotter reported a threat 5441 | -9/Recycling | Spotter reported a threat 5478 | -9/Recycling | Spotter reported a threat 5516 | -9/Recycling | Spotter reported a threat 5551 | -9/Recycling | Spotter reported a threat 5572 | -9/Recycling | Spotter reported a threat 5738 | -9/Recycling | Spotter reported a threat 5766 | -9/Recycling | Spotter reported a threat 5810 | -9/Recycling | Spotter reported a threat 5842 | -9/Recycling | Spotter reported a threat 5854 | -9/Recycling | Spotter reported a threat 5857 | -9/Recycling | Spotter reported a threat 5898 | -9/Recycling | Discovered new exit (range 16) 5906 | -9/Recycling | Spotter reported a threat 5908 | -9/Recycling | Spotter reported a threat 5910 | -9/Recycling | Spotter reported a threat 5915 | -9/Recycling | Spotter reported a threat 5963 | -9/Recycling | Spotter reported a threat 5968 | -9/Recycling | Spotter reported a threat 5968 | -9/Recycling | Spotter reported a threat 5996 | -9/Recycling | Build established: Hauler-Mutant 6016 | -9/Recycling | Spotter reported a threat 6021 | -9/Recycling | Spotter reported a threat 6052 | -9/Recycling | Spotter reported a threat 6086 | -9/Recycling | Spotter reported a threat 6096 | -9/Recycling | Spotter reported a threat 6096 | -9/Recycling | Spotter reported a threat 6149 | -9/Recycling | Spotter reported a threat 6198 | -9/Recycling | Spotter reported a threat 6212 | -9/Recycling | Spotter reported a threat 6244 | -9/Recycling | Spotter reported a threat 6264 | -9/Recycling | Spotter reported a threat 6265 | -9/Recycling | Spotter reported a threat 6287 | -9/Recycling | Spotter reported a threat 6297 | -9/Recycling | Build established: Hauler-Gunner 6297 | -9/Recycling | Spotter reported a threat 6329 | -9/Recycling | Spotter reported a threat 6329 | -9/Recycling | Spotter reported a threat 6340 | -9/Recycling | Spotter reported a threat 6379 | -9/Recycling | Spotter reported a threat 6393 | -9/Recycling | Spotter reported a threat 6470 | -9/Recycling | Entered Factory 6470 | -7/Factory | Accompanied by 1 ally 6470 | -7/Factory | Evolved 4 slots: Propulsion x1, Utility x3 6768 | -7/Factory | Build established: Hauler-Skirmisher 6870 | -7/Factory | Search patrols dispatched 7270 | -7/Factory | Search patrols dispatched 7499 | -7/Factory | Cargo convoy interrupted 7567 | -7/Factory | Discovered new exit (range 15) 7647 | -7/Factory | Identified exit to Lower Caves 7670 | -7/Factory | Search patrols dispatched 7720 | -7/Factory | Entered Lower Caves 7738 | -7/Lower Caves | Attacked by a delusional Derelict stockpiling parts 8151 | -7/Lower Caves | Build established: Hauler-Tank 8424 | -7/Lower Caves | Learned location of Zion (-6) 8492 | -7/Lower Caves | Attracted the attention of an 0b10 outpost 8756 | -7/Lower Caves | Discovered new exit (range 11) 8757 | -7/Lower Caves | Encountered a Warlord checkpoint 8775 | -7/Lower Caves | Learned location of 1 exit from Proximity Caves 8816 | -7/Lower Caves | Identified exit to Lower Caves 8838 | -7/Lower Caves | Entered another Lower Caves area 8846 | -7/Lower Caves | Learned Factory stockpile data 8853 | -7/Lower Caves | Discovered new exit (range 8) 8865 | -7/Lower Caves | Identified exit to Factory 9014 | -7/Lower Caves | Learned Factory non-interactive machine intel 9154 | -7/Lower Caves | Attracted the attention of an 0b10 outpost 9204 | -7/Lower Caves | Destroyed 10 combat bots 9214 | -7/Lower Caves | Lost 4 parts (1p1n2u) 9257 | -7/Lower Caves | Discovered new exit (range 15) 9273 | -7/Lower Caves | Identified exit to Data Miner 9275 | -7/Lower Caves | Entered Data Miner 9275 | -7/Data Miner | Discovered new exit (range 6) 9285 | -7/Data Miner | Identified exit to Proximity Caves 9303 | -7/Data Miner | Met Data Miner 9342 | -7/Data Miner | Learned location of Section 7 (-2) 9342 | -7/Data Miner | Acquired the access code to Warlord's prototype stash 9353 | -7/Data Miner | Received God Mode back door access code from Data Miner 9395 | -7/Data Miner | Entered Proximity Caves 9418 | -6/Proximity Caves | Escorted by Enhanced Grunt 9924 | -6/Proximity Caves | Attracted the attention of an 0b10 outpost 9990 | -6/Proximity Caves | Core integrity fell below 50% 10025 | -6/Proximity Caves | Lost 8 parts (1p2n1u4w) 10038 | -6/Proximity Caves | Destroyed 7 combat bots 10276 | -6/Proximity Caves | Lost 4 parts (1p1u2w) 10277 | -6/Proximity Caves | System corruption reached 10% 10281 | -6/Proximity Caves | Destroyed 7 combat bots 10430 | -6/Proximity Caves | Lost 6 parts (3n2u1w) 10579 | -6/Proximity Caves | Core integrity fell below 20% 10618 | -6/Proximity Caves | Destroyed by D-53 Grenadier with Mini Grenade Launcher Last Messages --------------- 10549_ Acquired 2 matter. 10549_ Acquired 11 matter. 10549_ Acquired 5 matter. 10549_ Slug penetrates Reinforced Barrier. 10555_ System corrupted: Heat flow error (+126). 10570_ Dispatcher launches Target Drone into the air. 10574_ Acquired Airjet. 10580_ Dispatcher launches Target Drone into the air. 10582_ System corrupted: Heat flow error (+124). 10586_ Airjet destroyed. 10590_ Dispatcher launches Target Drone into the air. 10590_ Arm. Wheel destroyed. 10590_ Slug penetrates D-53 Grenadier. 10600_ Dispatcher launches Target Drone into the air. 10600_ Target Drone destroyed. 10603_ Gauss Rifle destroyed. 10603_ KE Penetrator destroyed. 10603_ Gauss Cannon destroyed. 10604_ JP<#9L=CZ3 UZKH6UZHARUXEDVSGK|FZVKS= 10618_ Lrn. Tractor Beam destroyed. Map ----- +----------------------------------------------------+ | ?????????????????????????????????????????????????? | | ?????????????????????????????????????????????????? | | ?????????????????????????????????????????????????? | | ?????????????????????????????????????????????????? | | ?????????????????????????????????????????????????? | | ?????????????????? ??????????????????????????? | | ???????????????? ????????????????????????? | | ????????????? ?????????????????????? | | ??????????? ???????????????????? | | ????????? ?????????????????? | | ???????? ?????????????????? | | ???????? ?????????????????? | | ??????? * = #??????????????????? | | ??????? #??????????????????? | | ?????? #??????????????????? | | ?????? #??????????????????? | | ?????? #??????????????????? | | ????? =* < #??????????????????? | | ????? i #??????????????????? | | ???? d #??????????????????? | | ???? d #??????????????????? | | ???? * #??????????????????? | | ???? *! #??????????????????? | | ???? ######?????????????? | | ????? #?????????????? | | ????? @ #?????????????? | | ?????? #?????????????? | | ?????? #?????????????? | | ?????? #?????????????? | | ??????? #?????????????? | | ??????? #?????????????? | | ???????? #?????????????? | | ???????? #?????????????? | | ????????? #?????????????? | | ?????????? i ######### ######?????????????? | | ??????????? ????????# #??????????????????? | | ????????????#######??????###n ####???????????????? | | ???????????????????????### # # #???????????????? | | ???????????????????????# # ## #???????????????? | | ####?????????????######## ###???????????????? | | ##????????????# ## ##????????????????? | | #????????????# ### # ##?????????????????? | | ##?????######### "## # #??????????????????? | | ####?????## # # ### ## #????####??????????? | | ##???????# # # # #????# #??????????? | | #???????## # ##???# #??????????? | | ######### # ##### ##?????????? | | %% #?????????? | | [######### ### #?????????? | | ######## # ##?????????? | +----------------------------------------------------+ Best States ------------- Heat Dissipation 53 Energy Generation 18 Energy Capacity 300 Matter Stores 300 Matter Capacity 300 Sight Range 16 Robot Scan Range 14 Terrain Scan Density 10 Armor Coverage 375 Resistance: TH 10 Resistance: EM 15 Core Shielding 20 Evasion (%) 44 Recoil Reduction 4 Authchip Count 1 Item Schematics ----------------- Cargo Storage Unit | -9/Materials | Scanalyzed Grenade Launcher | -9/Materials | Scanalyzed Arm. Treads | -7/Factory | Scanalyzed Combat Drone Bay | -7/Data Miner | Free Lgt. Regenerative Plating | -7/Data Miner | Free Cld. Aerolev Unit | -7/Data Miner | Free Thermal Defense Suite | -7/Data Miner | Free Prc. Rocket Launcher | -7/Data Miner | Free Linear Gravjet | -7/Data Miner | Free Imp. Component Analysis Suite | -7/Data Miner | Free Variable Charge Gun | -7/Data Miner | Free Smartbomb Launcher | -7/Data Miner | Free Adv. Salvage Targeting Computer | -7/Data Miner | Free Adv. Trap Scanner | -7/Data Miner | Free Robot Schematics ------------------ H-66 Slayer | -7/Data Miner | Free B-48 Gladiator | -7/Data Miner | Free M-28 Smith | -7/Data Miner | Free Y-54 Guardian | -7/Data Miner | Free A-15 Conveyor | -7/Data Miner | Free Fabricated ------------ Nothing Alien Tech Used ----------------- None Achievements -------------- None Challenges ------------ None Game ------ Seed LaserRemoteBarrier Manual? 0 Play Time 02:58:32 Cumulative 110.3 hours Start 2022.12.05 @ 03:22:00 End 2022.12.06 @ 00:15:51 Sessions 2 Manual Loads 0 Difficulty Rogue Special Mode None Game No. 31 Rogue 31 Adventurer 0 Explorer 0 Win Type - Total 1 Types 1/0/0/0/0/0/0/0/0 Lore% 44 Gallery% 47 Achievement% 42 Wizard Run 0 Options --------- ASCII 0 Keyboard 1 Movement Vi Keybinds 0 Fullscreen 1 Font 18/SmallcapsGlow Map View 76x50 Tactical HUD 1 Map Filters NONE Filters NONE Steam 1 RUN: 519e40e6-bd62-49b7-b930-3a151e11247a